[Event "44th Chess Olympiad Open 2022"]
[Site "Chennai"]
[Date "2022.08.07"]
[Round "9.5"]
[White "Erigaisi Arjun"]
[Black "Mekhitarian, Krikor Sevag"]
[Result "1-0"]
[WhiteElo "2689"]
[BlackElo "2542"]
[Annotator "TA"]
[PlyCount "125"]
[EventDate "2022.??.??"]
[TimeControl "60"]

{[%evp 13,125,0,0,0,0,4,0,-3,39,34,22,24,17,18,34,28,39,33,36,15,5,12,23,27,91,
78,56,57,133,133,133,133,133,133,129,129,132,105,129,103,99,70,83,83,112,41,68,
76,96,82,92,77,76,89,95,87,123,93,134,139,178,172,159,98,133,133,133,133,133,
133,133,133,133,133,133,133,133,133,133,133,133,89,93,94,133,133,134,133,133,
133,133,133,133,133,156,162,191,191,227,229,233,233,331,327,313,288,262,150,
211,150,150,141,29966,11862]} 1. c4 {[%emt 0:00:04]} c5 {[%emt 0:00:32]} 2. Nf3
{[%emt 0:00:07]} Nc6 {[%emt 0:00:11]} 3. d4 {[%emt 0:00:07]} cxd4 {[%emt 0:00:
00]} 4. Nxd4 {[%emt 0:00:06]} Nf6 {[%emt 0:00:19][%cal Yg8f6,Yf6g4,Yg4e5,Ye5c4,
Yc4a3]} 5. Nc3 {[%emt 0:00:07]} e6 {[%emt 0:00:51]} 6. g3 {[%emt 0:00:00]} Qb6
{[%emt 0:00:07]} 7. Ndb5 {[%emt 0:00:41]} Ne5 {[%emt 0:00:24] ...Bc5 is the
strong threat.} 8. Bf4 {[%emt 0:00:00] A33: Symmetrical English: 2 Nf3 Nf6 3
d4 cxd4 4 Nxd4 e6 5 Nc3 Nc6.} Nfg4 {[%cal Ye5f3]} 9. e3 {[%emt 0:02:09]
Threatens to win with Be2.} a6 {[%emt 0:00:03]} 10. Qa4 {[%emt 0:31:23] The
position is equal.} g5 {[%emt 0:00:23]} (10... Ra7 $5 {[%cal Ra6b5]} 11. h3 (
11. Nxa7 $2 Qxb2 12. Be2 Qxc3+ 13. Kf1 Qxa1+ $19) 11... axb5 12. Qxb5 Qc6 13.
hxg4 (13. Qxc6 Nxc6 14. hxg4 e5 $15) 13... Qxh1 14. Bxe5 h5 $15) 11. Bxe5 {
[%emt 0:00:00]} Nxe5 {[%emt 0:00:07]} 12. O-O-O $1 {[%emt 0:01:09]} Rb8 {
[%emt 0:00:53]} 13. Nd4 {[%emt 0:15:44] [#]} Be7 $146 {[%emt 0:05:31]} ({
Predecessor:} 13... Bg7 14. Qc2 O-O 15. g4 Nxg4 16. h4 gxh4 17. Rxh4 f5 18. Be2
Nf6 19. e4 Nxe4 20. Nxe4 Bxd4 21. Rg1+ Kf7 22. c5 Qb4 23. a3 {1-0 (23) Predke,
A (2682)-Vachier Lagrave,M (2761) Berlin 2022}) 14. Be2 {[%emt 0:13:44]} Qb4 {
[%emt 0:00:55]} 15. Qc2 {[%emt 0:02:18]} Nxc4 {[%emt 0:01:50]} 16. a3 {[%emt 0:
00:00]} Nxa3 {[%emt 0:59:47]} 17. bxa3 {[%emt 0:00:00]} Qxa3+ {[%emt 0:19:09]}
18. Kd2 {[%emt 0:01:47]} d5 {[%emt 0:08:41]} (18... O-O $11) 19. Rb1 $1 $16 {
[%emt 0:01:51] And now Nc6 would win.} Bd7 {[%emt 0:12:38] Inhibits Nc6.} 20.
Rb3 $36 {[%emt 0:02:41] White has the initiative.} Qd6 {[%emt 0:00:00]} (20...
Qa5 $14) 21. Rhb1 {[%emt 0:01:20]} b5 {[%emt 0:00:00] [#]} 22. Bxb5 {0x0.
001eb9b3dc19dp-1022s more active pieces. The black rooks are badly placed.}
axb5 {[%emt 0:00:00]} (22... Rxb5 23. Ndxb5) 23. Ncxb5 Bxb5 {[%emt 0:09:09]}
24. Nxb5 {[%emt 0:00:21]} Rxb5 {[%emt 0:00:04]} 25. Rxb5 {[%emt 0:00:12]} O-O {
[%emt 0:00:00]} 26. Ke2 {[%emt 0:00:46]} Bf6 {[%emt 0:00:00]} 27. f4 {[%emt 0:
04:05]} h6 {[%emt 0:01:45]} 28. Rb6 {[%emt 0:01:23]} Qd8 {[%emt 0:02:21]} 29.
Rc6 {[%emt 0:00:32]} (29. f5 $16) 29... Bg7 {[%emt 0:04:36]} 30. Rd1 {[%emt 0:
00:00]} Qa8 31. Kf3 {[%emt 0:03:19]} Qa3 {[%emt 0:06:39]} 32. Rd3 {[%emt 0:00:
22]} Qa1 {[%emt 0:00:02] ( -> ...Qf1+)} 33. Kg2 {[%emt 0:00:00] Inhibits Qf1+.}
Ra8 {[%emt 0:01:33] Strongly threatening ...Ra2.} 34. Rd2 {[%emt 0:00:53][%cal
Yd3d2,Yd2e2,Ye2c2]} Qa3 {[%emt 0:06:43]} 35. Re2 {[%emt 0:00:43]} Rd8 {[%emt 0:
04:37]} 36. f5 {[%emt 0:00:03]} exf5 {[%emt 0:00:24]} 37. Qxf5 {[%emt 0:00:41]}
Qe7 {[%emt 0:02:34]} 38. Kf3 {[%emt 0:00:41]} (38. Rf2 $142) 38... Qb7 {
[%emt 0:00:21]} 39. Rec2 {[%emt 0:00:00]} d4 40. exd4 {[%emt 0:06:43]} Rxd4 {
[%emt 0:00:00]} 41. Qc8+ {[%emt 0:00:00]} Qxc8 {[%emt 0:00:00]} 42. Rxc8+ {
[%emt 0:03:17] Endgame KRR-KRB} Kh7 {[%emt 0:00:00]} 43. R2c7 {[%emt 0:00:00]}
Kg6 44. Rc6+ {[%emt 0:14:25]} Bf6 {[%emt 0:04:09]} 45. Rg8+ $1 {[%emt 0:00:10]}
Kh7 {[%emt 0:00:00]} 46. Ra8 {[%emt 0:03:07]} ({But not} 46. Rxf6 $6 Kxg8 47.
Rxh6 Kg7 $11) 46... Be5 {[%emt 0:11:09]} 47. Ra7 {[%emt 0:00:00]} Kg7 {[%emt 0:
00:00]} 48. Rc5 {[%emt 0:00:00]} Bb8 {[%emt 0:00:08]} 49. Rb7 {[%emt 0:00:00]}
Rd8 {[%emt 0:04:11]} 50. Rf5 {[%emt 0:00:00]} Rf8 {[%emt 0:00:00]} 51. Rd5 {
[%emt 0:00:00]} Rc8 {[%emt 0:03:58]} 52. Rdd7 {[%emt 0:00:00]} Rf8 {[%emt 0:00:
00]} 53. Rb6 h5 {[%emt 0:03:08]} 54. Rb5 {[%emt 0:02:16] Prevents Be5.} g4+ {
[%emt 0:00:00]} 55. Kg2 {[%emt 0:00:53]} Rc8 {[%emt 0:00:00]} 56. Rxh5 {
[%emt 0:00:00]} Rc2+ {[%emt 0:00:00]} 57. Kf1 {[%emt 0:00:00]} Kg6 {[%emt 0:02:
15]} (57... Rb2 $142 58. Rdd5 f6) 58. Rb5 $1 $18 {[%emt 0:00:22]} Bc7 {[%emt 0:
04:21] [#]} 59. Rb4 $1 {[%emt 0:00:16]} f5 {[%emt 0:00:03]} 60. Ra4 {[%emt 0:
00:07]} ({White has to play} 60. Rb7 $18 Be5 61. Rb6+ Kg5 62. Rb5) 60... Kg5 {
[%emt 0:00:00]} (60... Rc6 $16 {was necessary.} 61. Ke2 Kf6) 61. Ra6 {[%emt 0:
01:50] aiming for Rg7+.} Be5 {[%emt 0:00:00] Inhibits Rg7+.} 62. Re7 {
Threatening mate with Ree6.} Bd4 $2 {[%emt 0:00:25] [#]} (62... Rc1+ $16 63.
Ke2 Rc5) 63. Ree6 $1 {[%emt 0:01:20] Weighted Error Value: White=0.08 
(flawless) /Black=0.28 (precise)} 1-0

[Event "44th Chess Olympiad Open 2022"]
[Site "Chennai"]
[Date "2022.08.07"]
[Round "9.5"]
[White "Fier, Alexandr"]
[Black "Vidit, Santosh Gujrathi"]
[Result "1/2-1/2"]
[WhiteElo "2567"]
[BlackElo "2714"]
[Annotator "TA"]
[PlyCount "96"]
[EventDate "2022.??.??"]
[TimeControl "60"]

{[%evp 10,96,15,11,17,16,23,11,19,14,12,-7,-6,-29,-8,0,66,64,58,49,53,52,60,56,
68,13,38,29,28,28,28,28,28,25,25,25,25,26,28,29,35,30,33,18,31,16,16,13,14,14,
14,14,15,15,15,3,3,3,3,3,3,3,3,3,3,3,3,3,3,3,3,3,3,3,3,0,3,3,3,3,3,3,8,3,7,3,3,
3,3]} 1. e4 {[%emt 0:00:03]} e5 {[%emt 0:00:42]} 2. Nf3 {[%emt 0:00:04]} Nc6 {
[%emt 0:00:11]} 3. Bc4 {[%emt 0:00:04]} Nf6 {[%emt 0:00:27]} 4. d3 {[%emt 0:00:
00]} Bc5 {[%emt 0:00:20]} 5. O-O {[%emt 0:00:05]} d6 {[%emt 0:01:27]} 6. c3 {
[%emt 0:00:06]} a5 {[%emt 0:01:46] C54: Giuoco Piano: 4 c3 Nf6, main lines
with 5 d4 and 5 d3.} 7. Re1 {[%emt 0:01:13]} Ba7 {[%emt 0:00:45]} 8. Bb3 {
[%emt 0:04:01]} O-O {[%emt 0:10:09]} 9. h3 {[%emt 0:00:22] [#]} Re8 $146 {
[%emt 0:08:15]} ({Predecessor:} 9... Ne7 10. d4 Ng6 11. Bc2 c6 12. Nbd2 Nh5 13.
Nf1 Nhf4 14. Be3 exd4 15. cxd4 d5 {1-0 (34) Vidit,S (2727)-Wagner,D (2584)
Chess.com INT 2022}) 10. Bg5 {[%emt 0:05:03]} h6 {[%emt 0:00:51]} 11. Bh4 {
[%emt 0:00:04]} g5 $1 {[%emt 0:01:09]} 12. Bg3 {[%emt 0:03:03]} Kg7 {[%emt 0:
00:00]} (12... Nh5 $11 13. Nxe5 Nxg3 14. Bxf7+ Kg7 15. Nxc6 bxc6 16. Bxe8 Qxe8)
13. Nbd2 $14 {[%emt 0:10:43]} Bd7 {[%emt 0:22:26]} 14. Nf1 {[%emt 0:01:13]} Ne7
{[%emt 0:00:50]} 15. d4 {[%emt 0:02:48]} Ng6 {[%emt 0:00:10]} 16. Bc2 {[%emt 0:
00:00]} Nh5 {[%emt 0:16:40]} 17. dxe5 {[%emt 0:07:36]} (17. Bh2 $14) 17... dxe5
{[%emt 0:06:13] [#]} (17... Nxg3 {feels hotter.} 18. Nxg3 Nxe5 19. Nf5+ Kh7)
18. Bxe5+ $1 {[%emt 0:03:20]} Nxe5 {[%emt 0:00:12]} 19. Nxe5 {[%emt 0:00:03]}
Rxe5 {[%emt 0:00:14]} 20. Qxh5 {[%emt 0:00:03]} Qf6 {[%emt 0:00:18]} 21. Qe2 {
[%emt 0:00:02]} ({But not} 21. Ne3 $2 Bxe3 22. Qe2 (22. Rxe3 $2 g4 $19) 22...
Bc5 $19) 21... Bb5 {[%emt 0:00:58]} 22. Qf3 {[%emt 0:00:04]} Qxf3 {[%emt 0:00:
00]} 23. gxf3 {[%emt 0:00:06]} Bxf1 {[%emt 0:00:39]} 24. Kxf1 {[%emt 0:00:05]}
Rd8 {[%emt 0:01:35]} 25. Rad1 {[%emt 0:00:31]} Ree8 {[%emt 0:00:15]} 26. Bb3 {
[%emt 0:02:42]} Bc5 {[%emt 0:03:50]} 27. Ke2 {[%emt 0:00:16]} c6 {[%emt 0:00:
00] The position is equal.} 28. a4 {[%emt 0:05:34]} Kf6 {[%emt 0:03:10]} 29.
Bc4 {[%emt 0:00:06]} Bd6 {[%emt 0:04:11]} 30. h4 {[%emt 0:06:34]} Bc7 {[%emt 0:
00:00]} 31. hxg5+ {[%emt 0:00:05]} hxg5 {[%emt 0:00:02]} 32. b4 {[%emt 0:00:25]
} axb4 {[%emt 0:03:14]} 33. cxb4 {[%emt 0:00:04]} Rxd1 {[%emt 0:00:07]} 34.
Rxd1 $11 {[%emt 0:00:03] Endgame KRB-KRB} Rd8 {[%emt 0:00:07]} 35. Rc1 {
[%emt 0:02:03]} Bf4 {[%emt 0:03:14]} 36. Rc2 {[%emt 0:00:04]} Ke7 {[%emt 0:01:
07]} 37. b5 {[%emt 0:03:40]} cxb5 {[%emt 0:00:12]} 38. Bxb5 {[%emt 0:00:04]} f6
{[%emt 0:01:22]} 39. Rb2 {[%emt 0:00:47]} Be5 {[%emt 0:00:00]} 40. Rb1 {
[%emt 0:00:11]} b6 {[%emt 0:00:38]} 41. Bc4 {[%emt 0:33:28]} Rd4 {[%emt 0:02:
46]} 42. Bb5 {[%emt 0:00:00]} Kd8 {[%emt 0:02:58]} 43. Rc1 {[%emt 0:00:00]} Bf4
{[%emt 0:00:09]} 44. Rc2 {[%emt 0:00:00]} Rd6 {[%emt 0:00:00]} 45. Rc4 {
[%emt 0:00:00]} Be5 {[%emt 0:00:32]} 46. Kf1 {[%emt 0:00:00]} Rd3 {[%emt 0:03:
06]} 47. Kg2 {[%emt 0:00:00]} Rc3 {[%emt 0:00:21]} 48. Rxc3 {[%emt 0:00:00]}
Bxc3 {[%emt 0:00:02] Weighted Error Value: White=0.06 (flawless) /Black=0.05 
(flawless)} 1/2-1/2

[Event "44th Chess Olympiad Open 2022"]
[Site "Chennai"]
[Date "2022.08.07"]
[Round "9.5"]
[White "Diamant, Andre"]
[Black "Sasikiran, Krishnan"]
[Result "0-1"]
[WhiteElo "2538"]
[BlackElo "2638"]
[Annotator "TA"]
[PlyCount "98"]
[EventDate "2022.??.??"]
[TimeControl "60"]

{[%evp 22,98,30,6,21,2,0,0,35,32,57,43,84,75,89,89,96,108,105,86,82,87,124,110,
127,135,127,118,110,65,76,29,41,23,26,0,0,0,0,0,0,0,0,0,0,0,13,-5,0,-16,-16,
-17,-20,-26,-15,-15,-18,-24,-6,-6,-6,-6,-6,-172,-181,-373,-385,-374,-370,-347,
-329,-402,-379,-4112,-2002,-903,-865,-822,-412]} 1. d4 {[%emt 0:00:12]} Nf6 {
[%emt 0:00:19]} 2. c4 {[%emt 0:00:01]} e6 {[%emt 0:00:14]} 3. Nc3 {[%emt 0:00:
00]} Bb4 {[%emt 0:00:10]} 4. e3 {[%emt 0:00:44]} O-O {[%emt 0:00:28]} 5. Bd3 {
[%emt 0:00:51]} d5 {[%emt 0:00:56]} 6. Nf3 {[%emt 0:00:56]} c5 {[%emt 0:02:00]}
7. O-O {[%emt 0:00:27]} dxc4 {[%emt 0:07:06]} 8. Bxc4 {[%emt 0:01:56]} Nbd7 {
[%emt 0:01:49]} 9. a3 {[%emt 0:02:18]} Bxc3 {[%emt 0:06:31]} 10. bxc3 {[%emt 0:
00:00]} b6 {[%emt 0:10:17] 10...Qc7 is the hot move.} 11. Re1 {[%emt 0:12:18]}
Bb7 {[%emt 0:01:00]} 12. Bd3 {[%emt 0:08:13]} Ne4 {[%emt 0:04:50] E55:
Nimzo-Indian: Rubinstein: Main Line: 7...dxc4 8 Bxc4 Nbd7.} 13. Qc2 {[%emt 0:
00:00]} f5 {[%emt 0:05:53]} 14. Nd2 {[%emt 0:27:36][%cal Rd2e4] [#]} Ndf6 $146
{[%emt 0:19:12][%cal Ye4f2] The position is equal.} ({Predecessor:} 14... Nxf2
15. Kxf2 Qh4+ 16. Kf1 Qxh2 17. Nf3 Bxf3 18. gxf3 Qh1+ 19. Kf2 Qh2+ 20. Kf1 Qh1+
{½-½ (20) Dyga,R-Motz,D GER corr 1993}) 15. f3 {[%emt 0:02:17]} Nxd2 {
[%emt 0:03:04]} 16. Qxd2 {[%emt 0:02:32]} Kh8 {[%emt 0:01:02]} 17. Bb2 {
[%emt 0:00:00]} Qe8 {[%emt 0:10:12]} 18. c4 {[%emt 0:00:00]} Rd8 {[%emt 0:00:
00]} 19. a4 {[%emt 0:05:30]} Qg6 {[%emt 0:01:31]} 20. Kh1 {[%emt 0:01:15]} Qg5
{[%emt 0:08:05]} 21. Qf2 {[%emt 0:05:19]} Ne4 {[%emt 0:00:00]} 22. Qc2 {
[%emt 0:00:42]} (22. fxe4 $2 fxe4 23. Qg3 Qxg3 24. hxg3 exd3 $17) 22... Nf6 {
[%emt 0:00:00]} 23. a5 {[%emt 0:03:36]} h5 {[%emt 0:06:15]} 24. axb6 {[%emt 0:
00:00]} axb6 {[%emt 0:00:00]} 25. dxc5 {[%emt 0:01:02]} bxc5 {[%emt 0:00:00]}
26. Bf1 {[%emt 0:03:44]} (26. Ra5 $16) 26... h4 $1 $11 {[%emt 0:00:00][%cal
Yh4h3]} 27. Bc3 {[%emt 0:01:18]} h3 {[%emt 0:00:00]} 28. Rad1 {[%emt 0:00:39]}
Qh5 {[%emt 0:00:00] aiming for ...hxg2+.} 29. Rxd8 {[%emt 0:00:27]} Rxd8 {
[%emt 0:00:00]} 30. Qf2 {[%emt 0:00:37]} Kh7 {[%emt 0:03:21][%cal Yh8h7,Yh7g8,
Yg8f7]} 31. Qg3 {[%emt 0:00:23] [#] Black must now prevent Bxf6.} Rd7 {[%emt 0:
00:45]} 32. Kg1 {[%emt 0:00:25]} hxg2 {[%emt 0:01:04]} 33. Bxg2 {[%emt 0:00:05]
} Qg6 {[%emt 0:00:11]} 34. Qh4+ {[%emt 0:00:52]} Kg8 {[%emt 0:00:00]} 35. Qg3 {
[%emt 0:00:37]} Qxg3 {[%emt 0:02:36]} 36. hxg3 {[%emt 0:00:02]} Rd3 {[%emt 0:
00:04]} 37. Ba5 {[%emt 0:00:53]} Nd7 {[%emt 0:01:28]} 38. Bc7 {[%emt 0:00:40]
Prevents Ne5.} Kf7 {[%emt 0:00:40]} 39. Bf1 {[%emt 0:00:33]} Rb3 {[%emt 0:01:
38]} 40. Kf2 {[%emt 0:01:08]} g5 {[%emt 0:00:42]} 41. Rd1 {[%emt 0:00:00]} Nf6
{[%emt 0:04:20]} 42. Be5 $2 {[%emt 0:08:35] Now White is beyond hope.} (42. Be2
$1 $11 {and White has nothing to worry.}) 42... g4 $19 {[%emt 0:02:03]} 43. Be2
{[%emt 0:15:33]} (43. Bxf6 {might work better.} Bxf3 44. Rd3 Rxd3 45. Bxd3 Kxf6
46. e4) 43... gxf3 {[%emt 0:02:11]} 44. Bxf3 {[%emt 0:00:31]} Bxf3 {[%emt 0:00:
09]} 45. Kxf3 {[%emt 0:00:12] [#] KRB-KRN} Ng4 {[%emt 0:00:02]} 46. Ba1 {
[%emt 0:00:41]} Rxe3+ {[%emt 0:02:03]} 47. Kf4 $2 {[%emt 0:00:56]} (47. Kg2)
47... Kg6 {[%emt 0:00:25] ...Re2 is the strong threat. Black is clearly
winning.} 48. Rd8 {[%emt 0:00:28]} e5+ {[%emt 0:00:21]} 49. Bxe5 {[%emt 0:00:
10]} Re4+ {[%emt 0:00:04] Weighted Error Value: White=0.45/Black=0.06 
(flawless)} 0-1

[Event "44th Chess Olympiad Open 2022"]
[Site "Chennai"]
[Date "2022.08.07"]
[Round "9.6"]
[White "Bluebaum, Matthias"]
[Black "Stremavicius, Titas"]
[Result "1-0"]
[WhiteElo "2673"]
[BlackElo "2532"]
[Annotator "TA"]
[PlyCount "146"]
[EventDate "2022.??.??"]
[TimeControl "60"]

{[%evp 9,146,10,41,20,31,39,31,36,31,33,34,53,54,34,31,43,41,48,50,46,47,23,43,
42,68,64,70,58,72,72,70,71,77,62,97,70,70,70,70,70,84,84,82,86,87,52,40,31,35,
31,144,31,31,36,45,50,40,34,35,34,36,41,48,31,38,31,31,31,42,31,45,31,31,0,31,
31,37,37,41,37,56,0,0,0,57,47,160,21,161,161,163,171,175,193,180,188,203,155,
162,165,167,168,172,0,129,87,84,108,331,327,383,379,638,581,670,652,667,637,
611,611,596,589,600,496,436,381,877,846,1363,1329,1109,1029,5766,5587,5206,
5046,4627,2335,5085]} 1. Nf3 {[%emt 0:00:03]} d5 {[%emt 0:00:21]} 2. g3 {
[%emt 0:00:06]} Nf6 {[%emt 0:00:18]} 3. Bg2 {[%emt 0:00:09]} b5 {[%emt 0:00:52]
} 4. O-O {[%emt 0:01:34]} e6 {[%emt 0:00:12]} 5. d3 {[%emt 0:00:40][%cal Yd2d3,
Yd3e4,Ye4e5]} Be7 {[%emt 0:01:37]} 6. e4 {[%emt 0:01:23] A07: Réti Opening:
New York and Capablanca Systems.} dxe4 {[%emt 0:07:02]} 7. dxe4 {[%emt 0:04:48]
} Qxd1 {[%emt 0:10:28]} 8. Rxd1 {[%emt 0:00:05] White is slightly better.} Bb7
{[%emt 0:00:09]} 9. Nd4 {[%emt 0:08:15]} a6 {[%emt 0:00:00]} 10. e5 {[%emt 0:
03:33]} Nd5 {[%emt 0:00:03] [#]} 11. c4 $146 {[%emt 0:00:00]} ({Predecessor:} 
11. a4 Nc6 12. Nxc6 Bxc6 13. Nc3 O-O-O 14. axb5 axb5 15. Nxd5 Bxd5 16. Bxd5
exd5 17. Ra5 {½-½ (38) Norberg,J (2278)-Schneider,S (2368) Sweden 2016})
11... bxc4 {[%emt 0:00:07]} 12. Nd2 $1 {[%emt 0:00:03][%cal Yb1d2,Yd2b3,Yb3a5]}
c3 {[%emt 0:07:59]} 13. bxc3 {[%emt 0:02:04][%cal Yb2c3,Yc3c4,Yc4c5,Yc5c6] c4
is the strong threat.} Nc6 {[%emt 0:09:24]} 14. Nxc6 {[%emt 0:09:55]} Bxc6 {
[%emt 0:00:45]} 15. Nb3 {[%emt 0:03:54] Threatens to win with Na5.} Rb8 {
[%emt 0:15:54]} 16. Na5 {[%emt 0:13:15]} Ba4 {[%emt 0:02:40]} 17. Rd4 {[%emt 0:
02:23]} Bd7 {[%emt 0:00:13]} 18. c4 {[%emt 0:00:00]} Bb4 {[%emt 0:18:43]} 19.
Bd2 $1 {[%emt 0:04:02]} Bxd2 {[%emt 0:09:11]} 20. Rxd2 {[%emt 0:00:24]} Ne7 {
[%emt 0:00:04]} 21. Bb7 {[%emt 0:05:45]} g5 {[%emt 0:01:25]} 22. c5 {[%emt 0:
04:23] White is much more active.} Nd5 {[%emt 0:07:52]} 23. c6 {[%emt 0:02:40]}
(23. Bxa6 Ra8 24. Bb7 (24. c6 Bxc6 25. Nxc6 Rxa6 $11) 24... Rxa5 $11) 23... Bc8
{[%emt 0:00:05]} 24. Rd4 {[%emt 0:00:00]} Ke7 {[%emt 0:03:23]} 25. h4 {[%emt 0:
02:05]} Rg8 {[%emt 0:00:47]} 26. Rg4 {[%emt 0:03:06]} h6 {[%emt 0:00:45]} 27.
Re1 {[%emt 0:01:33]} f5 {[%emt 0:00:00]} 28. Rd4 {[%emt 0:00:37]} g4 {[%emt 0:
00:20]} 29. Kg2 {[%emt 0:04:58]} Nc3 {[%emt 0:00:47]} ({Black should play} 
29... h5 $14) 30. Rc4 {[%emt 0:01:34]} ({White should try} 30. Bxc8 $1 $16
Rgxc8 31. Rd7+ Kf8 32. Nb3) 30... Nd5 $1 $14 {[%emt 0:00:15]} 31. Rb1 {[%emt 0:
00:30]} Rd8 {[%emt 0:00:40]} 32. Rd4 {[%emt 0:01:49]} h5 {[%emt 0:01:19]} 33.
Rb2 {[%emt 0:01:09]} Rf8 {[%emt 0:00:00]} 34. f4 {[%emt 0:01:33]} gxf3+ $1 {
[%emt 0:00:20]} 35. Kxf3 {[%emt 0:00:01]} Rg8 {[%emt 0:00:13]} 36. Rb3 {
[%emt 0:01:20]} Rf8 {[%emt 0:00:29]} 37. Ra4 {[%emt 0:03:49]} Rg8 {[%emt 0:00:
34]} 38. Rc4 {[%emt 0:01:06]} Kf7 {[%emt 0:00:00]} 39. Kf2 {[%emt 0:01:07]} Ke7
{[%emt 0:00:24]} 40. Ra4 {[%emt 0:00:51]} Rg7 {[%emt 0:01:31]} 41. Rc4 {
[%emt 0:03:30]} Rg8 {[%emt 0:00:50]} 42. Rb2 {[%emt 0:00:05]} Rd8 {[%emt 0:01:
06]} 43. Rd4 {[%emt 0:02:24]} Rg8 {[%emt 0:00:00]} 44. Nc4 {[%emt 0:02:05]} Rd8
{[%emt 0:03:16]} 45. Rd3 {[%emt 0:03:07]} (45. Rb3 $14) 45... Rg8 $11 {[%emt 0:
01:41]} 46. Rd4 {[%emt 0:05:23]} (46. Rbb3 $11) 46... Rd8 $1 $14 {[%emt 0:00:
59]} 47. Rb3 {[%emt 0:01:40]} Rg8 {[%emt 0:00:00]} (47... Kf8 $14) 48. Kf3 {
[%emt 0:01:23]} (48. Nb2 $1 $16) 48... Rf8 {[%emt 0:01:57]} (48... Rg6 $11) 49.
Nb2 $1 $18 {[%emt 0:01:55]} Nb6 {[%emt 0:00:00]} 50. Nd3 {[%emt 0:00:55]
Hoping for Nc5.} Rxb7 {[%emt 0:06:59]} 51. cxb7 {[%emt 0:00:16]} Bxb7+ {
[%emt 0:00:04]} 52. Kf2 {[%emt 0:00:23]} Bd5 {[%emt 0:00:00]} 53. Ra3 {[%emt 0:
01:37]} Ra8 {[%emt 0:00:07]} 54. Ra5 {[%emt 0:01:27]} Nd7 {[%emt 0:01:01]} 55.
Rda4 {[%emt 0:03:16]} Nb6 {[%emt 0:00:32]} 56. Rd4 {[%emt 0:01:56]} Nd7 {
[%emt 0:00:05]} 57. Nf4 {[%emt 0:01:33]} c6 {[%emt 0:00:00]} 58. Nd3 {[%emt 0:
00:10]} ({But not} 58. Nxd5+ cxd5 59. Rda4 Rc8 $11) 58... c5 $2 {[%emt 0:01:54]
} (58... Rc8 $16) 59. Nxc5 {[%emt 0:00:46]} Nxe5 {[%emt 0:00:00] [#]} 60. Nxe6
$1 {[%emt 0:03:38]} Ng4+ $2 {[%emt 0:00:06] [#]} (60... Bxe6 61. Rxe5 Rc8) 61.
Rxg4 $1 {[%emt 0:00:08]} fxg4 {[%emt 0:00:14]} (61... Bxe6 62. Rg5) 62. Rxd5 {
[%emt 0:00:38]} Kxe6 {[%emt 0:00:07]} 63. Rxh5 {[%emt 0:00:03] Endgame KR-KR}
Rf8+ {[%emt 0:00:08] [#]} 64. Kg2 $1 {[%emt 0:00:04]} Rc8 {[%emt 0:00:06]} 65.
Ra5 {[%emt 0:01:35]} ({Less strong is} 65. Rh6+ Kf5 $16) 65... Rc2+ {[%emt 0:
00:19]} 66. Kg1 {[%emt 0:00:53]} Rc6 {[%emt 0:02:03]} 67. Ra4 {[%emt 0:01:32]}
Ke5 $2 {[%emt 0:02:30]} (67... Rc2 68. h5 (68. Rxg4 Rxa2 69. Rg8 Kf7 $16) 68...
Kf5 69. Rxa6 Rc1+ 70. Kf2 Ke4) 68. Rxg4 {[%emt 0:00:31] White is clearly
winning.} Rc1+ {[%emt 0:00:04]} 69. Kg2 {[%emt 0:00:06]} Rc2+ {[%emt 0:00:05]}
70. Kh3 {[%emt 0:00:02]} Rxa2 {[%emt 0:00:00]} 71. Rf4 {[%emt 0:01:12]} a5 {
[%emt 0:00:08]} 72. Kg4 {[%emt 0:01:07]} Ke6 {[%emt 0:00:39]} 73. h5 {[%emt 0:
00:38]} Kd5 {[%emt 0:00:22] Weighted Error Value: White=0.14 (very precise) /
Black=0.25 (precise)} 1-0